bitfinex-derivatives/quotes_SOLF0:USTF0_20240918
["timestamp","ask_amount","ask_price","bid_price","bid_amount"]
[1726618893292,3.8195,130.88,130.8,1.4579]
[1726618893590,27.3191,130.89,130.82,3.821]
[1726618895305,27.3191,130.89,130.83,3.8207]
[1726618895997,28.739,130.91,130.83,3.8207]
[1726618896195,24.9203,130.91,130.84,3.8204]
[1726618896692,3.819,130.9,130.84,3.8204]
[1726618896898,23.5,130.89,130.83,3.8207]
[1726618897203,19.0993,130.88,130.8,1.4579]
[1726618897399,19.0993,130.88,130.83,3.8207]
[1726618897595,15.28,130.88,130.83,3.8207]
[1726618897904,15.28,130.88,130.84,3.8204]
[1726618899800,15.28,130.88,130.83,23.5]
[1726618900101,1.4203,130.91,130.85,23.5]
[1726618900692,15.28,130.92,130.85,23.5]
[1726618901105,15.28,130.92,130.89,3.8188]
[1726618901302,15.0506707,130.92,130.89,3.8188]
[1726618901801,15.0506707,130.92,130.83,1.5072]
[1726618902199,15.0506707,130.92,130.87,3.8195]
[1726618902703,18.8688707,130.92,130.87,3.8195]
[1726618903205,18.8688707,130.92,130.88,3.8193]
[1726618903601,15.0506707,130.92,130.83,1.5072]
[1726618904203,15.0506707,130.92,130.89,3.819]
[1726618904504,15.0506707,130.92,130.83,1.5072]
[1726618904704,3.8187,130.91,130.83,1.5072]
[1726618904902,15.0506707,130.92,130.83,1.5072]
[1726618905205,3.8187,130.91,130.83,1.5072]
[1726618905902,3.8187,130.91,130.86,3.8196]
[1726618906411,3.8187,130.91,130.83,1.5072]
[1726618906600,20.3623707,130.92,130.83,1.5072]
[1726618907106,20.3623707,130.92,130.87,3.8194]
[1726618907907,3.8184,130.91,130.87,3.8194]
[1726618908806,3.8187,130.9,130.83,1.5072]
[1726618909205,23.5,130.91,130.83,1.5072]
[1726618910605,23.5,130.91,130.87,3.8194]
[1726618911809,27.3186,130.91,130.87,3.8194]
[1726618912007,23.5,130.91,130.89,3.819]
[1726618912311,23.5,130.91,130.83,1.5072]
[1726618913209,20.3622707,130.92,130.88,3.8191]
[1726618913602,16.5441707,130.92,130.87,3.8195]
[1726618913808,23.5,130.91,130.87,3.8195]
[1726618914608,27.3185,130.91,130.87,3.8195]
[1726618914809,23.5,130.91,130.87,3.8195]
[1726618915002,3.8189,130.9,130.86,3.8198]
[1726618915214,3.8189,130.9,130.83,1.5072]
[1726618915409,23.5,130.91,130.83,1.5072]
[1726618915709,3.8187,130.9,130.83,1.5072]
[1726618916606,3.8187,130.9,130.85,3.8201]
[1726618916801,3.8191,130.89,130.85,3.8201]
[1726618917205,3.8191,130.89,130.82,1.4762]
[1726618917812,3.8191,130.89,130.85,3.8199]
[1726618918211,3.8191,130.89,130.85,3.82]
[1726618918611,3.8193,130.88,130.85,3.82]
[1726618919714,3.8191,130.89,130.85,3.82]
[1726618920215,3.55301394,130.89,130.85,3.82]
[1726618920411,3.55301394,130.89,130.86,3.8198]
[1726618921702,3.8189,130.9,130.87,3.8194]
[1726618921908,16.5441707,130.92,130.83,23.5]
[1726618922309,3.8185,130.91,130.88,3.819]
[1726618922814,20.3624707,130.92,130.88,3.819]
[1726618923002,16.5441707,130.92,130.88,3.819]
[1726618923612,16.5441707,130.92,130.83,23.5]
[1726618924317,20.3624707,130.92,130.88,3.8191]
[1726618924816,3.8185,130.91,130.88,3.8191]
[1726618925016,23.5,130.9,130.82,1.4762]
[1726618925319,23.5,130.88,130.8,1.4579]
[1726618925523,23.5,130.86,130.8,1.4579]
[1726618926009,23.5,130.88,130.8,1.4579]
[1726618927210,27.3193,130.88,130.84,3.8202]
[1726618927413,27.3193,130.88,130.8,1.4579]
[1726618928218,27.3193,130.88,130.84,3.8203]
[1726618928517,3.8196,130.87,130.84,3.8203]
[1726618928910,23.5,130.88,130.8,1.4579]
[1726618929108,3.82,130.86,130.8,1.4579]
[1726618929316,3.82,130.86,130.82,3.8208]
[1726618929616,3.82,130.86,130.8,1.4579]
[1726618930814,5.2465,130.87,130.8,1.4579]
[1726618932321,5.2465,130.87,130.83,3.8206]
[1726618932621,3.8205,130.84,130.8,1.4579]
[1726618932816,23.5,130.86,130.82,3.821]
[1726618933627,3.8203,130.85,130.82,3.821]
[1726618934717,3.57765158,130.85,130.82,3.821]
[1726618934915,27.32,130.86,130.82,3.821]
[1726618935316,23.5,130.86,130.82,3.821]
[1726618936912,3.8202,130.85,130.82,3.821]
[1726618937321,3.8205,130.84,130.81,3.8212]
[1726618938121,3.8203,130.85,130.82,3.821]
[1726618939910,3.8205,130.84,130.81,3.8212]
[1726618940317,23.5,130.86,130.8,1.4579]
[1726618940517,3.8203,130.85,130.82,3.8208]
[1726618940919,3.82,130.86,130.83,3.8207]
[1726618941116,1.4268,130.87,130.8,1.4579]
[1726618941618,3.82,130.86,130.83,3.8207]
[1726618942029,5.2465,130.87,130.84,3.8203]
[1726618942718,3.8199,130.86,130.83,3.8206]
[1726618943026,23.5,130.86,130.8,1.4579]
[1726618943718,23.5,130.86,130.8,5.2794]
[1726618943918,14.68,130.84,130.8,5.2794]
[1726618944119,14.68,130.84,130.8,1.4579]
[1726618944325,14.68,130.84,130.81,3.8211]
[1726618945822,16.1068,130.87,130.8,1.4579]
[1726618946024,1.4268,130.87,130.8,1.4579]
[1726618946420,5.2465,130.87,130.84,3.8204]
[1726618946822,3.8197,130.87,130.84,3.8204]
[1726618948819,19.0994,130.88,130.84,3.8204]
[1726618949824,3.8199,130.86,130.83,3.8205]
[1726618950124,3.28770752,130.86,130.83,3.8205]
[1726618950628,3.8197,130.87,130.83,3.8205]
[1726618951223,3.8197,130.87,130.84,3.8204]
[1726618951428,3.8195,130.88,130.84,3.8204]
[1726618953435,3.8197,130.87,130.84,3.8204]
[1726618954438,23.48,130.89,130.81,2.8966]
[1726618955030,3.8201,130.86,130.82,3.8208]
[1726618955234,3.8201,130.86,130.81,2.8966]
[1726618955434,3.8201,130.86,130.83,3.8207]
[1726618955840,3.8202,130.85,130.81,2.8966]
[1726618956038,3.8202,130.85,130.82,3.8208]
[1726618956738,3.82,130.86,130.83,3.8207]
[1726618957738,23.48,130.87,130.8,1.4579]
[1726618958338,3.8204,130.85,130.81,3.8211]
[1726618958744,3.8204,130.85,130.8,1.4579]
[1726618958944,3.8204,130.85,130.82,3.821]
[1726618961844,3.82,130.86,130.82,3.821]
[1726618963651,3.82,130.86,130.83,3.8205]
[1726618966758,3.82,130.86,130.84,3.8204]
[1726618967746,3.82,130.86,130.8,1.4579]
[1726618967953,18.5,130.86,130.8,1.4579]
[1726618968456,18.5,130.86,130.83,3.8206]
[1726618968865,18.5,130.86,130.84,3.8204]
[1726618969060,14.68,130.86,130.84,3.8204]
[1726618969559,3.8192,130.89,130.81,16.2044]
[1726618970859,3.8193,130.88,130.85,3.82]
[1726618972165,3.8191,130.89,130.86,3.8199]
[1726618972354,29.96,130.9,130.81,19.98509614]
[1726618972664,29.96,130.9,130.89,3.819]
[1726618972857,15.28,130.9,130.83,14.68]
[1726618973057,15.28,130.9,130.84,1.3981]
[1726618973257,15.28,130.9,130.88,3.8191]
[1726618973456,29.96,130.9,130.84,1.3981]
[1726618974159,33.7788,130.9,130.87,3.8195]
[1726618974360,14.68,130.93,130.84,16.0781]
[1726618974559,3.8186,130.91,130.84,16.0781]
[1726618974760,3.8186,130.91,130.84,1.3981]
[1726618975363,3.8186,130.91,130.87,3.8193]
[1726618976171,3.8182,130.92,130.84,1.3981]
[1726618976466,14.68,130.92,130.84,1.3981]
[1726618976855,3.8186,130.91,130.87,3.8193]
[1726618977259,3.8191,130.89,130.86,3.8197]
[1726618977662,14.68,130.9,130.84,1.3981]
[1726618978766,18.4988,130.9,130.87,3.8195]
[1726618980060,3.819,130.89,130.86,3.8198]
[1726618980263,3.0208486,130.89,130.86,3.8198]
[1726618980662,14.68,130.9,130.84,1.3981]
[1726618980866,18.49384021,130.9,130.84,1.3981]
[1726618981068,14.68,130.89,130.81,1.5244]
[1726618981263,3.8198,130.87,130.84,3.8203]
[1726618982661,3.8198,130.87,130.83,3.8206]
[1726618982662,3.8199,130.86,130.83,3.8206]
[1726618983875,14.68,130.85,130.81,1.5244]
[1726618984072,14.68,130.85,130.8,2.9819]
[1726618984269,14.68,130.84,130.8,1.4579]
[1726618985176,3.8206,130.84,130.81,3.8211]
[1726618985373,14.68,130.85,130.8,1.4579]
[1726618986768,18.5004,130.85,130.82,3.821]
[1726618988476,14.68,130.87,130.8,1.4579]
[1726618988668,14.68,130.87,130.8,16.1379]
[1726618989378,18.4998,130.87,130.8,16.1379]
[1726618989773,14.68,130.87,130.8,16.1379]
[1726618990169,14.68,130.87,130.8,1.4579]
[1726618990384,14.68,130.87,130.82,3.8208]
[1726618990683,14.68,130.87,130.8,1.4579]
[1726618991076,14.68,130.87,130.82,3.8209]
[1726618991679,3.8202,130.85,130.82,3.8209]
[1726618991876,14.68,130.87,130.83,3.8207]
[1726618992279,14.68,130.85,130.8,1.4579]
[1726618992781,3.8209,130.83,130.8,1.4579]
[1726618993079,14.68,130.85,130.8,1.4579]
[1726618994881,3.8206,130.84,130.81,3.8211]
[1726618996783,3.8206,130.84,130.8,1.4579]
[1726618996784,18.2371,130.89,130.8,16.1379]
[1726618996982,32.9171,130.89,130.81,1.3991]
[1726618997185,14.68,130.88,130.81,1.3991]
[1726618997878,3.8197,130.87,130.83,3.8205]
[1726618998082,3.8197,130.87,130.81,1.3991]
[1726618998489,18.4994,130.88,130.81,1.3991]
[1726618998787,3.8194,130.88,130.81,16.0791]
[1726618998980,3.8194,130.88,130.84,3.8202]
[1726618999184,15.28,130.89,130.82,14.68]
[1726618999690,15.28,130.89,130.86,3.8197]
[1726619000788,19.099,130.89,130.86,3.8197]
[1726619001195,15.28,130.89,130.87,3.8195]
[1726619001491,15.28,130.89,130.83,1.5282]
[1726619001681,29.96,130.89,130.83,1.5282]
[1726619002597,14.68,130.89,130.83,1.5282]
[1726619003090,3.8194,130.88,130.84,3.8202]
[1726619004386,14.68,130.89,130.81,1.3991]
[1726619004387,14.68,130.85,130.81,1.3991]
[1726619004895,14.68,130.85,130.83,3.8207]
[1726619005694,14.68,130.85,130.82,3.8209]
[1726619006098,18.5003,130.85,130.82,3.8209]
[1726619006293,14.68,130.85,130.82,3.8209]
[1726619006892,18.5002,130.85,130.82,3.8209]
[1726619008395,3.8205,130.84,130.81,3.8213]
[1726619010195,14.68,130.84,130.8,1.4579]
[1726619010493,14.68,130.84,130.75,16.0817]
[1726619010494,14.68,130.82,130.75,1.4017]
[1726619010698,3.8215,130.81,130.75,2.9199]
[1726619013001,3.8216,130.8,130.77,3.8223]
[1726619013698,3.8214,130.81,130.78,3.8222]
[1726619013898,9.4,130.79,130.78,3.8222]
[1726619014298,9.4,130.79,130.77,3.8224]
[1726619016801,9.4,130.78,130.77,3.8224]
[1726619018610,9.4,130.78,130.76,3.8227]
[1726619019409,9.4,130.77,130.75,5.3412]
[1726619019905,9.4,130.78,130.76,3.8228]
[1726619020502,3.8219,130.79,130.75,10.9182]
[1726619020503,9.4,130.79,130.75,10.9182]
[1726619021599,13.2217,130.8,130.76,13.2227]
[1726619021806,13.2213,130.82,130.77,9.4]
[1726619022010,13.2213,130.82,130.78,3.8219]
[1726619022303,3.8213,130.82,130.77,9.4]
[1726619022509,9.4,130.82,130.77,9.4]
[1726619023205,13.221,130.82,130.79,3.8218]
[1726619026003,9.4,130.81,130.76,9.4]
[1726619026407,9.4,130.8,130.75,2.9227]
[1726619026705,9.4,130.79,130.76,3.8226]
[1726619027610,9.4,130.79,130.77,3.8224]
[1726619031820,9.4,130.79,130.75,2.9227]
[1726619031821,9.4,130.78,130.75,1.5182]
[1726619032311,9.4,130.78,130.75,5.3411]
[1726619033109,9.4,130.78,130.76,3.8227]
[1726619033309,13.2222,130.79,130.76,13.2227]
[1726619033611,13.2222,130.79,130.76,3.8227]
[1726619036221,9.4,130.78,130.76,3.8227]
[1726619036621,3.8222,130.79,130.76,3.8227]
[1726619036821,9.4,130.78,130.76,3.8227]
[1726619037628,13.2223,130.78,130.75,5.3412]
[1726619038028,9.4,130.78,130.75,1.5182]
[1726619038929,9.4,130.78,130.76,3.8228]
[1726619039422,9.4,130.77,130.7,1.4903]
[1726619039627,9.4,130.74,130.71,1.4688]
[1726619040327,9.4,130.75,130.74,3.8233]
[1726619040528,9.4,130.78,130.74,9.4]
[1726619040737,1.3857,130.81,130.74,9.4]
[1726619040738,9.4,130.79,130.74,9.4]
[1726619041427,9.4,130.79,130.77,3.8224]
[1726619041831,9.4,130.81,130.79,3.8219]
[1726619042137,3.8211,130.82,130.78,9.4]
[1726619042138,9.4,130.82,130.78,9.4]
[1726619043934,19.1005,130.84,130.8,3.8216]
[1726619044134,19.1005,130.84,130.76,16.1842]
[1726619044526,19.1005,130.84,130.79,3.8217]
[1726619044940,19.1005,130.84,130.76,16.1842]
[1726619045741,19.1005,130.84,130.79,3.8217]
[1726619046533,19.1005,130.84,130.8,3.8216]
[1726619047036,19.1005,130.84,130.79,14.68]
[1726619047037,15.28,130.84,130.79,14.68]
[1726619048044,15.28,130.84,130.81,3.8211]
[1726619048238,15.28,130.84,130.79,14.68]
[1726619048541,1.4271,130.88,130.83,3.8206]
[1726619049338,3.8199,130.86,130.83,3.8206]
[1726619049759,1.4271,130.88,130.83,3.8206]
[1726619049956,3.8199,130.86,130.83,3.8206]
[1726619052456,3.8199,130.86,130.82,3.821]
[1726619052656,3.8203,130.85,130.81,1.4347]
[1726619053443,3.8205,130.84,130.81,1.4347]
[1726619054665,14.68,130.85,130.75,14.68]
[1726619054666,3.8209,130.83,130.75,14.68]
[1726619054855,3.8209,130.83,130.75,16.1557]
[1726619055150,3.8209,130.83,130.79,3.8216]
[1726619055747,3.8209,130.83,130.8,3.8215]
[1726619056253,14.68,130.85,130.8,3.8215]
[1726619056254,3.8206,130.84,130.8,3.8215]
[1726619057752,3.8206,130.84,130.81,3.8213]
[1726619060957,3.8203,130.85,130.81,3.8213]
[1726619061160,14.68,130.86,130.81,3.8213]
[1726619061952,14.68,130.87,130.76,2.9737]
[1726619062260,14.68,130.82,130.76,2.9737]
[1726619062858,14.68,130.81,130.76,2.9737]
[1726619063059,14.68,130.81,130.76,1.5048]
[1726619063458,3.8219,130.79,130.76,5.3275]
[1726619064064,13.2219,130.79,130.76,5.3275]
[1726619064250,13.2217,130.8,130.76,1.5048]
[1726619064455,13.2217,130.8,130.77,3.8225]
[1726619064652,9.4,130.8,130.76,1.5048]
[1726619065359,9.4,130.8,130.77,3.8223]
[1726619065857,9.4,130.8,130.76,1.5048]
[1726619066067,9.4,130.8,130.77,3.8224]
[1726619066867,13.2215,130.81,130.78,3.8221]
[1726619067069,13.2217,130.8,130.76,10.9048]
[1726619067864,3.822,130.79,130.76,14.7275]
[1726619068170,9.4,130.78,130.76,1.5048]
[1726619069572,9.4,130.78,130.76,5.3274]
[1726619071169,13.2222,130.78,130.75,3.823]
[1726619071370,9.4,130.77,130.75,3.823]
[1726619072275,13.2225,130.77,130.74,3.8232]
[1726619072474,9.4,130.76,130.71,12.248]
[1726619072775,9.4,130.76,130.71,10.8196]
[1726619073274,13.2229,130.76,130.73,3.8235]
[1726619074175,9.4,130.74,130.72,3.8238]
[1726619075871,9.4,130.74,130.73,3.8237]
[1726619076877,13.2234,130.74,130.71,1.4196]
[1726619077074,9.4,130.73,130.71,1.4196]
[1726619077376,16.7142,130.82,130.68,1.4551]
[1726619077377,9.4,130.72,130.68,1.4551]
[1726619077576,13.224,130.72,130.69,3.8247]
[1726619078873,9.4,130.72,130.69,3.8247]
[1726619079783,9.4,130.72,130.7,3.8245]
[1726619085583,13.2241,130.72,130.69,3.8248]
[1726619085788,9.4,130.71,130.68,1.4551]
[1726619086180,9.4,130.71,130.69,3.8246]
[1726619087879,9.4,130.71,130.68,1.4551]
[1726619089085,9.4,130.71,130.69,3.8248]
[1726619094390,9.4,130.71,130.7,3.8245]
[1726619095894,9.4,130.71,130.68,1.4551]
[1726619095895,3.8235,130.74,130.71,3.8243]
[1726619096086,18.3137,130.77,130.71,9.4]
[1726619096287,9.4,130.76,130.71,9.4]
[1726619097185,9.4,130.76,130.73,3.8235]
[1726619097786,9.4,130.76,130.74,3.8232]
[1726619100097,28.5226,130.77,130.74,3.8232]
[1726619100296,9.4,130.76,130.74,3.8232]
[1726619100898,19.1226,130.77,130.72,5.2293]
[1726619100899,9.4,130.75,130.72,5.2293]
[1726619101102,9.4,130.74,130.72,5.2293]
[1726619103701,9.4,130.75,130.73,3.8237]
[1726619106112,9.4,130.75,130.72,5.2293]
[1726619106407,9.4,130.74,130.72,5.2293]
[1726619107906,9.4,130.74,130.72,1.4055]
[1726619108417,9.4,130.74,130.69,9.4]
[1726619108709,9.4,130.73,130.69,10.7947]
[1726619109108,9.4,130.73,130.71,3.824]
[1726619109316,9.4,130.73,130.69,10.7947]
[1726619109702,9.4,130.73,130.69,1.3947]
[1726619109913,9.4,130.74,130.7,9.4]
[1726619110107,9.4,130.74,130.72,3.8237]
[1726619110909,13.2224,130.78,130.73,9.4]
[1726619111710,9.4,130.77,130.73,9.4]
[1726619112012,13.2225,130.77,130.74,3.8233]
[1726619112513,9.4,130.76,130.74,3.8233]
[1726619114009,9.4,130.75,130.7,10.869]
[1726619114314,16.7863,130.81,130.7,10.869]
[1726619114315,9.4,130.74,130.7,10.869]
[1726619114516,9.4,130.74,130.72,3.8237]
[1726619114710,3.8232,130.75,130.72,3.8237]
[1726619114711,9.4,130.75,130.72,3.8237]
[1726619115206,13.2231,130.75,130.72,3.8237]
[1726619116221,9.4,130.75,130.72,3.8237]
[1726619118817,9.4,130.75,130.73,3.8236]
[1726619123420,9.4,130.75,130.74,3.8234]
[1726619124122,9.4,130.75,130.73,3.8235]
[1726619125823,9.4,130.76,130.74,3.8234]
[1726619126020,16.7863,130.81,130.75,9.4]
[1726619126221,9.4,130.8,130.75,9.4]
[1726619127022,9.4,130.79,130.76,3.8227]
[1726619128926,9.4,130.79,130.74,12.3937]
[1726619131028,9.4,130.79,130.76,3.8226]
[1726619131227,9.4,130.79,130.74,12.3937]
[1726619134433,3.8214,130.81,130.78,3.8222]
[1726619134633,9.4,130.79,130.78,3.8222]
[1726619135632,9.4,130.79,130.77,3.8224]
[1726619137540,3.8213,130.82,130.75,9.4]
[1726619137836,9.4,130.8,130.75,9.4]
[1726619138427,9.4,130.8,130.79,3.8219]
[1726619141435,9.4,130.82,130.8,3.8216]
[1726619141836,9.4,130.82,130.81,3.8213]
[1726619142039,1.4442,130.85,130.78,9.4]
[1726619142230,9.4,130.84,130.78,9.4]
[1726619142733,9.4,130.84,130.82,3.821]
[1726619144937,9.4,130.83,130.82,3.821]
[1726619145440,9.4,130.85,130.81,9.4]
[1726619145940,9.4,130.85,130.83,3.8207]
[1726619146139,9.4,130.84,130.8,10.782]
[1726619146639,13.22,130.86,130.82,3.8209]
[1726619146835,9.4,130.85,130.82,3.8209]
[1726619147443,3.8196,130.87,130.83,3.8205]
[1726619147641,9.4,130.84,130.83,3.8205]
[1726619148137,16.6588,130.89,130.81,9.4]
[1726619148340,16.6588,130.89,130.82,9.4]
[1726619148642,9.4,130.87,130.82,9.4]
[1726619148844,9.4,130.87,130.85,3.8201]
[1726619149246,9.4,130.86,130.81,9.4]
[1726619149941,9.4,130.84,130.82,3.8208]
[1726619150145,9.4,130.84,130.81,9.4]
[1726619150741,9.4,130.86,130.82,9.4]
[1726619150939,9.4,130.87,130.83,9.4]
[1726619151243,9.4,130.88,130.85,3.82]
[1726619151441,9.4,130.88,130.84,9.4]
[1726619152143,9.4,130.88,130.85,3.82]
[1726619153043,9.4,130.89,130.84,9.4]
[1726619153543,9.4,130.89,130.85,9.4]
[1726619154646,9.4,130.89,130.84,9.4]
[1726619155341,9.4,130.88,130.85,3.8199]
[1726619156049,9.4,130.87,130.85,3.8199]
[1726619161747,9.4,130.88,130.86,3.8199]
[1726619161949,9.4,130.89,130.85,9.4]
[1726619162337,9.4,130.89,130.87,3.8194]
[1726619162938,1.4128,130.94,130.87,9.4]
[1726619163144,9.4,130.92,130.88,9.4]
[1726619164247,3.818,130.93,130.89,3.8188]
[1726619164442,9.4,130.92,130.89,3.8188]
[1726619164845,13.2182,130.92,130.88,3.8192]
[1726619165044,9.4,130.9,130.87,1.5285]
[1726619165246,9.4,130.88,130.84,9.4]
[1726619165446,9.4,130.88,130.85,3.82]
[1726619165844,9.4,130.88,130.84,9.4]
[1726619166045,9.4,130.88,130.86,3.8196]
[1726619166553,1.4128,130.94,130.87,3.8196]
[1726619166851,1.4128,130.94,130.88,9.4]
[1726619167053,9.4,130.93,130.88,9.4]
[1726619167253,13.218,130.93,130.89,3.8188]
[1726619167945,3.818,130.93,130.9,3.8187]
[1726619168252,13.2177,130.94,130.9,13.2187]
[1726619168452,13.2177,130.94,130.9,3.8187]
[1726619168953,9.4,130.92,130.9,3.8187]
[1726619169155,9.4,130.91,130.89,3.8189]
[1726619171056,9.4,130.91,130.87,12.2931]
[1726619171756,9.4,130.91,130.88,3.819]
[1726619172358,9.4,130.91,130.89,3.819]
[1726619174557,9.4,130.9,130.88,3.8192]
[1726619174767,9.4,130.89,130.86,1.3899]
[1726619175158,9.4,130.89,130.86,5.2096]
[1726619175454,9.4,130.89,130.86,1.3899]
[1726619175957,9.4,130.9,130.86,1.3899]
[1726619176163,9.4,130.91,130.87,9.4]
[1726619177056,9.4,130.91,130.88,3.8191]
[1726619177653,9.4,130.91,130.88,3.8192]
[1726619177963,13.2184,130.91,130.86,10.7899]
[1726619178161,9.4,130.9,130.86,10.7899]
[1726619178360,9.4,130.9,130.87,3.8193]
[1726619178862,9.4,130.9,130.87,3.8195]
[1726619179061,9.4,130.9,130.86,10.7899]
[1726619179460,9.4,130.9,130.88,3.8191]
[1726619180763,9.4,130.91,130.88,3.8191]
[1726619181065,9.4,130.93,130.89,13.219]
[1726619181364,13.2181,130.93,130.89,3.819]
[1726619181662,13.2181,130.93,130.9,3.8187]
[1726619182261,3.8177,130.94,130.91,3.8183]
[1726619182462,13.2177,130.94,130.91,3.8183]
[1726619185583,13.2178,130.93,130.91,3.8183]
[1726619185882,9.4,130.92,130.87,2.8585]
[1726619186178,9.4,130.9,130.87,2.8585]
[1726619186773,9.4,130.9,130.89,3.8189]
[1726619187678,9.4,130.9,130.88,3.8192]
[1726619188772,9.4,130.91,130.88,3.8192]
[1726619190581,9.4,130.91,130.89,3.819]
[1726619193879,9.4,130.91,130.87,12.2585]
[1726619194477,9.4,130.91,130.88,3.8192]
[1726619194978,9.4,130.91,130.87,12.2585]
[1726619195385,9.4,130.9,130.86,1.3899]
[1726619196678,9.4,130.9,130.87,3.8194]
[1726619196679,13.2188,130.9,130.87,3.8194]
[1726619197483,9.4,130.9,130.87,3.8194]
[1726619198379,9.4,130.9,130.87,3.8195]
[1726619199878,13.2187,130.9,130.87,3.8195]
[1726619200882,9.4,130.88,130.8,2.8092]
[1726619201084,9.4,130.87,130.81,1.4764]
[1726619201278,9.4,130.87,130.82,9.4]
[1726619201478,13.2198,130.87,130.83,3.8206]
[1726619201880,9.4,130.87,130.82,9.4]
[1726619202180,9.4,130.87,130.85,3.8201]
[1726619207278,3.8194,130.88,130.85,3.8201]
[1726619207489,13.2194,130.88,130.85,3.8201]
[1726619209681,9.4,130.86,130.81,10.8764]
[1726619209879,9.4,130.86,130.81,9.4]
[1726619211288,9.4,130.86,130.83,3.8205]
[1726619212486,13.2194,130.88,130.84,3.8204]
[1726619213790,13.2194,130.88,130.85,3.8201]
[1726619214982,3.8197,130.87,130.83,9.4]
[1726619215189,13.2197,130.87,130.84,3.8204]
[1726619218192,3.8199,130.86,130.83,3.8206]
[1726619218497,9.4,130.84,130.8,4.2317]
[1726619218697,9.4,130.82,130.8,2.8463]
[1726619218899,9.4,130.82,130.8,1.4225]
[1726619219096,9.4,130.84,130.8,10.8225]
[1726619219297,9.4,130.84,130.81,3.8213]
[1726619219697,9.4,130.83,130.8,1.4225]
[1726619219893,9.4,130.83,130.8,5.2439]
[1726619220301,9.4,130.82,130.77,9.4]
[1726619220490,13.2212,130.82,130.78,3.822]
[1726619220695,9.4,130.83,130.78,9.4]
[1726619220993,9.4,130.82,130.78,9.4]
[1726619221201,9.4,130.82,130.79,3.8219]
[1726619224605,13.2212,130.82,130.78,13.2221]
[1726619224904,9.4,130.81,130.78,3.8221]
[1726619226901,13.2214,130.81,130.78,3.8221]
[1726619227103,9.4,130.81,130.77,3.8225]
[1726619228002,13.2218,130.8,130.76,10.9147]
[1726619228606,13.2215,130.81,130.77,13.2223]
[1726619228805,13.2215,130.81,130.77,9.4]
[1726619229910,13.2215,130.81,130.78,3.8222]
[1726619230112,13.2217,130.8,130.76,1.5147]
[1726619230308,9.4,130.8,130.76,1.5147]
[1726619230608,9.4,130.8,130.77,3.8223]
[1726619231010,13.2218,130.8,130.76,1.5147]
[1726619232314,13.2218,130.8,130.77,3.8223]
[1726619233715,3.8218,130.8,130.77,3.8223]
[1726619233914,9.4,130.84,130.79,9.4]
[1726619234614,9.4,130.84,130.81,3.8212]
[1726619235119,13.2203,130.85,130.82,3.821]
[1726619237818,13.2206,130.84,130.81,3.8213]